Cogmind - Beta 13 @@@ ROGUE MODE // 2024.07.04 @ 01:05:31 Player: sormi Result: Destroyed by G-47 Trooper with Particle Gun Performance ------------- Evolutions (3) 1500 Regions Visited (5) 1000 Robots Destroyed (73) 365 Value Destroyed (2481) 2481 Prototype IDs (4) 80 Alien Tech Used (0) 0 Bonus (0) 0 TOTAL SCORE: 5426 Bonus ------- None Cogmind --------- Core Integrity 0/700 Matter 47/300 Energy 100/100 System Corruption 9% Temperature Hot (200) Movement Core (400) Ox7 Location -7/Lower Caves Parts ------- > --- POWER (2) -------- (None) > --- PROPULSION (2) --- (None) > --- UTILITY (7) ------ Large Storage Unit Advanced Terrain Scan Processor > --- WEAPON (2) ------- Mini Assault Cannon > --- INVENTORY (15) --- Thermal Generator Improved Heat Sink Improved Heat Sink Structural Scanner Seismic Detector Core Analyzer Energy Filter Long-range Tractor Beam Plasma Cannon Assault Cannon Gauss Cannon Mining Laser Peak State ------------ > --- POWER ------------ Light Nuclear Core Heavy Deuterium Engine > --- PROPULSION ------- Wheel Gravmag System > --- UTILITY ---------- Improved Heat Sink Improved Heat Sink Large Storage Unit Structural Scanner Improved Terrain Scanner Advanced Terrain Scan Processor Targeting Computer > --- WEAPON ----------- Advanced Assault Cannon Mini Assault Cannon > --- INVENTORY -------- Thermal Generator Improved Heat Sink Improved Heat Sink Terrain Scanner Seismic Detector Core Analyzer Energy Filter Long-range Tractor Beam Plasma Cannon Assault Cannon Assault Cannon Gauss Cannon Mining Laser [Rating: 41] Favorites ----------- Power Deuterium Engine Engine Deuterium Engine Power Core Light Nuclear Core Propulsion Light Treads Treads Light Treads Leg Improved Aluminum Leg Wheel Wheel Hover Unit Gravmag System Utility Targeting Computer Device Improved Heat Sink Storage Large Storage Unit Processor Targeting Computer Hackware Hacking Suite Protection Light Armor Plating Weapon Assault Cannon Energy Gun Beam Rifle Energy Cannon Particle Cannon Ballistic Gun Assault Rifle Ballistic Cannon Assault Cannon Launcher Shock Bomb Launcher Build | -11 -10 -9 -8 -7 -7 ------- Run | Yrd Mat Mat Mat Fac Low Slots Evolved 6 | . . 2 2 2 . Power 1 | . . . . 1 . Propulsion . | . . . . . . Utility 5 | . . 2 2 1 . Weapon . | . . . . . . Parts Attached 70 | 6 . 25 9 24 6 Power 13 | 1 . 5 . 5 2 Engine 8 | 1 . 4 . 2 1 Core 5 | . . 1 . 3 1 Reactor . | . . . . . . Propulsion 12 | 2 . 4 1 5 . Treads 7 | 2 . 2 1 2 . Leg 2 | . . 2 . . . Wheel 2 | . . . . 2 . Hover 1 | . . . . 1 . Flight . | . . . . . . Utility 25 | 1 . 9 6 6 3 Device 15 | . . 5 4 5 1 Storage 4 | 1 . 1 1 . 1 Processor 3 | . . 1 . 1 1 Hackware 1 | . . 1 . . . Protection 2 | . . 1 1 . . Artifact . | . . . . . . Weapon 20 | 2 . 7 2 8 1 Energy Gun 5 | 1 . 3 1 . . Energy Cannon 1 | . . 1 . . . Ballistic Gun 2 | 1 . 1 . . . Ballistic Cannon 11 | . . 2 1 7 1 Launcher 1 | . . . . 1 . Special Weapon . | . . . . . . Impact Weapon . | . . . . . . Slashing Weapon . | . . . . . . Piercing Weapon . | . . . . . . Special Melee Weapon . | . . . . . . Unidentified Prototypes 2 | . . . . 1 1 Parts Lost 42 | . . 10 5 14 13 Power 10 | . . 2 . 4 4 Propulsion 9 | . . 2 . 5 2 Utility 15 | . . 4 3 3 5 Weapon 8 | . . 2 2 2 2 Highest Loss Streak 11 | . . 6 4 7 11 To Critical Strikes . | . . . . . . Average Slot Usage (%) 91 | . 85 96 97 85 95 Engine 8 | . 14 10 9 6 3 Core 3 | . . . . 6 9 Treads 10 | . 28 15 18 4 . Leg 1 | . . 6 . . . Wheel 1 | . . . . 1 6 Hover 1 | . . . . . 6 Device 20 | . . 10 19 29 25 Storage 10 | . 14 13 9 7 10 Processor 9 | . . 9 9 10 14 Hackware 1 | . . 5 . . . Protection 2 | . . 1 14 . . Energy Gun 5 | . 14 9 9 2 . Energy Cannon 1 | . . 5 . . . Ballistic Gun 1 | . 14 3 . . . Ballistic Cannon 9 | . . 4 9 12 14 Naked Turns . | . . . . . . Heaviest Build 53 | 14 14 27 46 53 50 Greatest Support 40 | 40 40 40 40 40 10 Greatest Overweight (x) 15 | . . 5 1 15 4 Average Overweight (x) 2 | . . . . 4 3 Largest Inventory Capacity 15 | 8 8 8 15 15 15 Average Capacity 12 | 7 8 8 14 15 15 Most Carried 15 | 2 2 8 12 15 15 Average Carried 9 | 1 2 6 9 12 13 Final Capacity 15 | 8 8 8 15 15 15 Final Carried 13 | 2 2 7 11 13 12 Class Distribution -------------------- 52% | Scavenger-Mutant 26% | Mutant 21% | Scavenger-Skirmisher Dominant Class ---------------- Mutant | -10/Materials Mutant | -9/Materials Scavenger-Mutant | -8/Materials Scavenger-Mutant | -7/Factory Scavenger-Skirmisher | -7/Lower Caves Resources | -11 -10 -9 -8 -7 -7 ----------- Run | Yrd Mat Mat Mat Fac Low Matter Collected 1740 | 114 36 623 341 365 261 Remotely 481 | . . 50 306 125 . Salvage Created 2404 | . 36 1369 547 368 84 Parts 156 | . 5 74 29 39 9 Haulers Intercepted 1 | . . 1 . . . Recyclers Shooed 1 | . . 1 . . . Parts Field Recycled . | . . . . . . Retrieved Matter . | . . . . . . Parts Self-Destructed 9 | . . . . . 9 Prevented . | . . . . . . Kills | -11 -10 -9 -8 -7 -7 ------- Run | Yrd Mat Mat Mat Fac Low Combat Hostiles Destroyed 60 | . 3 24 13 15 5 Guns 17 | . 3 11 2 1 . Cannons 43 | . . 13 11 14 5 Classes Destroyed 15 | . 1 8 2 4 . Worker 1 | . . . . 1 . Builder 3 | . . . 1 2 . Tunneler 1 | . . . . 1 . Hauler 1 | . . 1 . . . Recycler 3 | . . 3 . . . Mechanic 1 | . . . . 1 . Operator 1 | . . 1 . . . Watcher 2 | . . 1 1 . . Swarmer 14 | . 3 . . 9 2 Grunt 27 | . . 16 8 2 1 Brawler 2 | . . 1 1 . . Duelist 2 | . . 2 . . . Sentry 10 | . . 5 3 1 1 Hunter 1 | . . . 1 . . Programmer 4 | . . . . 3 1 Best Kill Streak 5 | . 3 4 3 5 3 Combat Bots Only 4 | . 3 3 3 4 3 Max Kills in Single Turn 2 | . 1 2 1 1 1 Gunslinging . | . . . . . . Exploded . | . . . . . . Melee . | . . . . . . Uniques/NPCs Destroyed . | . . . . . . Combat | -11 -10 -9 -8 -7 -7 -------- Run | Yrd Mat Mat Mat Fac Low Hostile Shots Fired 507 | . 11 116 73 214 93 Missed 158 | . 3 35 21 72 27 Damage Taken 4937 | . 64 1103 771 1864 1135 Core 927 | . 21 147 49 389 321 Absorbed by Shields . | . . . . . . Core Remaining (%) 86 | 100 91 63 91 . . Volleys Fired 195 | . 10 68 43 55 19 Largest 2 | . 2 2 2 2 2 Hottest 124 | . 70 124 100 104 96 Shots Fired 378 | . 20 135 79 109 35 Gun 156 | . 20 72 36 28 . Cannon 220 | . . 63 43 79 35 Launcher 2 | . . . . 2 . Special . | . . . . . . Kinetic 209 | . 10 42 43 79 35 Thermal 167 | . 10 93 36 28 . Explosive . | . . . . . . Electromagnetic 2 | . . . . 2 . Robot Hit Streak 18 | . 2 18 12 9 5 Robot Miss Streak 4 | . 2 2 4 4 2 Penetration Max 1 | . . . . 1 . Secondary Targets 1 | . 1 . . . . Max Gunslinging Chain 1 | . 1 . . . . Shots Hit Robots 240 | . 10 101 51 57 21 Core Hits 107 | . 4 43 27 25 8 Critical Kills . | . . . . . . Critical Parts Destroyed . | . . . . . . Critical Strikes 15 | . . 5 4 5 1 Burn 9 | . . 5 2 2 . Blast 6 | . . . 2 3 1 Melee Attacks . | . . . . . . Impact . | . . . . . . Slashing . | . . . . . . Piercing . | . . . . . . Sneak Attacks . | . . . . . . Combat Hostiles . | . . . . . . Follow-up Attacks . | . . . . . . Damage Inflicted 5239 | . 122 1736 1189 1559 633 Guns 1482 | . 122 828 347 185 . Cannons 3657 | . . 902 842 1280 633 Explosions 75 | . . . . 75 . Melee . | . . . . . . Ramming 25 | . . 6 . 19 . Kinetic 3349 | . 72 522 842 1280 633 Thermal 1790 | . 50 1208 347 185 . Explosive . | . . . . . . Electromagnetic 75 | . . . . 75 . Impact . | . . . . . . Slashing . | . . . . . . Piercing . | . . . . . . Highest Corruption 9 | . . 4 . 8 9 Average Corruption 5 | . . 4 . 4 8 Corruption Purged . | . . . . . . Corruption Blocked . | . . . . . . Effects 45 | . . 12 . 17 16 Message Errors 19 | . . 7 . 7 5 Matter Fused 10 | . . 2 . 3 5 Heat Flow Errors 2 | . . . . 2 . Energy Discharges 5 | . . . . 2 3 Data Loss (minor) 4 | . . . . 1 3 Data Loss (major) 2 | . . 1 . 1 . Alerts 1 | . . 1 . . . Weapon Failures 2 | . . 1 . 1 . Overload Shots . | . . . . . . Overflow Damage 58 | . . . . 29 29 Projectiles 58 | . . . . 29 29 Explosions . | . . . . . . Melee . | . . . . . . Knockbacks 27 | . . 1 10 13 3 Impact . | . . . . . . Kinetic 26 | . . 1 9 13 3 Secondary 1 | . . . 1 . . Self-Inflicted Damage 9 | . . . . 9 . Shots . | . . . . . . Rammed 4 | . . 3 . 1 . Targets Rammed 4 | . . 3 . 1 . Kicked . | . . . . . . Crushed . | . . . . . . Highest Temperature 395 | . 45 341 395 139 185 Average Temperature 101 | . 17 77 148 28 87 Received Heat Transfer 1416 | . . 426 378 171 441 Effects 6 | . . 1 5 . . Shutdowns 3 | . . . 3 . . Energy Bleed 1 | . . 1 . . . Interference 2 | . . . 2 . . Siege Activations . | . . . . . . Robots Corrupted . | . . . . . . Combat Hostiles . | . . . . . . Parts Fried . | . . . . . . Impact Corruptions . | . . . . . . Robots Melted . | . . . . . . Combat Hostiles . | . . . . . . Parts Melted 7 | . . 5 . 2 . Heat Transferred 4847 | . 148 3034 1036 629 . Parts Sabotaged . | . . . . . . Parts Stolen . | . . . . . . Parts Stripped . | . . . . . . Power Chain Reactions . | . . . . . . Alert | -11 -10 -9 -8 -7 -7 ------- Run | Yrd Mat Mat Mat Fac Low Peak Influence 302 | . 100 302 243 200 . Initial 87 | . . 42 63 87 . Average 110 | . 58 156 156 66 . Maximum Alert Level 1 | . . 1 1 1 . Low Security (%) 86 | 100 100 70 77 99 . Level 1 13 | . . 29 22 . . Level 2 . | . . . . . . Level 3 . | . . . . . . Level 4 . | . . . . . . Level 5 . | . . . . . . High Security . | . . . . . . Max Security . | . . . . . . Squads Dispatched 12 | . . 2 2 8 . Investigation 2 | . . 1 1 . . Extermination 3 | . . . . 3 . Reinforcement 4 | . . 1 1 2 . Assault . | . . . . . . Garrison 3 | . . . . 3 . Intercept . | . . . . . . Searches Triggered . | . . . . . . Construction Impeded . | . . . . . . Haulers Reinforced . | . . . . . . Active Scanning Responses . | . . . . . . Cargo Convoy Interrupts . | . . . . . . Stealth | -11 -10 -9 -8 -7 -7 --------- Run | Yrd Mat Mat Mat Fac Low Distress Signals 7 | . . 6 1 . . Communications Jammed . | . . . . . . Distress Signals . | . . . . . . Times Spotted 96 | . 5 41 22 20 8 Peak Tracking Total 7 | . 3 5 4 4 7 Tactical Retreats 13 | . . 6 5 2 . Traps | -11 -10 -9 -8 -7 -7 ------- Run | Yrd Mat Mat Mat Fac Low Traps Triggered . | . . . . . . Indirectly . | . . . . . . Trap Hack Attempts . | . . . . . . Triggered . | . . . . . . Disarmed . | . . . . . . Reprogrammed . | . . . . . . Reused . | . . . . . . Traps Extracted . | . . . . . . Installed . | . . . . . . Triggered 1 | . . . . 1 . Machines | -11 -10 -9 -8 -7 -7 ---------- Run | Yrd Mat Mat Mat Fac Low Machines Disabled . | . . . . . . Max in Single Turn . | . . . . . . Machines Repaired . | . . . . . . Machines Dismantled . | . . . . . . Machines Sabotaged . | . . . . . . Overloaded Fab Kills . | . . . . . . Hacking | -11 -10 -9 -8 -7 -7 --------- Run | Yrd Mat Mat Mat Fac Low Machines Accessed 8 | . 1 6 . 1 . Terminals 8 | . 1 6 . 1 . Fabricators . | . . . . . . Repair Stations . | . . . . . . Recycling Units . | . . . . . . Scanalyzers . | . . . . . . Garrison Access . | . . . . . . Total Hacks 24 | . 3 15 . 6 . Successful 14 | . . 10 . 4 . Failed 10 | . 3 5 . 2 . Catastrophic 2 | . 2 . . . . Database Lockouts . | . . . . . . Manual 1 | . . . . 1 . Terminals 24 | . 3 15 . 6 . Fabricators . | . . . . . . Repair Stations . | . . . . . . Recycling Units . | . . . . . . Scanalyzers . | . . . . . . Garrison Access . | . . . . . . Terminal Hacks 14 | . . 10 . 4 . Record 5 | . . 1 . 4 . Robot Analysis 1 | . . 1 . . . Prototype ID Bank 1 | . . 1 . . . Terminal Index 1 | . . 1 . . . Alert Level 4 | . . 4 . . . Unreport Threat 2 | . . 2 . . . Fabricator Hacks . | . . . . . . Repair Station Hacks . | . . . . . . Recycling Unit Hacks . | . . . . . . Scanalyzer . | . . . . . . Garrison Access Hacks . | . . . . . . Unauthorized Hacks . | . . . . . . Terminals . | . . . . . . Fabricators . | . . . . . . Repair Stations . | . . . . . . Recycling Units . | . . . . . . Scanalyzers . | . . . . . . Garrison Access . | . . . . . . Data Cores Recovered 1 | . . 1 . . . Used . | . . . . . . Hacking Detections 5 | . 1 3 . 1 . Full Trace Events 2 | . . 2 . . . Feedback Events . | . . . . . . Feedback Blocked . | . . . . . . Robot Schematics Acquired . | . . . . . . Robots Built . | . . . . . . Authchips . | . . . . . . Time . | . . . . . . Total Robot Build Rating . | . . . . . . Part Schematics Acquired . | . . . . . . Parts Built . | . . . . . . Authchips . | . . . . . . Time . | . . . . . . Total Part Build Rating . | . . . . . . Parts Repaired . | . . . . . . Time . | . . . . . . Parts Recycled . | . . . . . . Recycled Matter . | . . . . . . Retrieved Matter . | . . . . . . Retrieved Components . | . . . . . . Parts Scanalyzed . | . . . . . . Part Schematics Acquired . | . . . . . . Parts Damaged . | . . . . . . Bothacking | -11 -10 -9 -8 -7 -7 ------------ Run | Yrd Mat Mat Mat Fac Low Used RIF Installer . | . . . . . . Robots Hacked . | . . . . . . Non-combat . | . . . . . . Combat . | . . . . . . Robot Hacks Applied . | . . . . . . Relay Couplers Released . | . . . . . . Fabnet Peak Effective % . | . . . . . . Robots Rewired . | . . . . . . Allies Hacked . | . . . . . . Hacks Repelled . | . . . . . . Allies | -11 -10 -9 -8 -7 -7 -------- Run | Yrd Mat Mat Mat Fac Low Total Allies . | . . . . . . Largest Group . | . . . . . . Highest-Rated Group . | . . . . . . Highest-Rated Ally . | . . . . . . Total Orders . | . . . . . . Ally Attacks . | . . . . . . Total Damage . | . . . . . . Kills . | . . . . . . Allies Corrupted . | . . . . . . Allies Melted . | . . . . . . Intel | -11 -10 -9 -8 -7 -7 ------- Run | Yrd Mat Mat Mat Fac Low Robot Analysis Total 1 | . . 1 . . . Derelict Logs Recovered 1 | . . . . . 1 Drone Launches . | . . . . . . Drone Recoveries . | . . . . . . Exploration | -11 -10 -9 -8 -7 -7 ------------- Run | Yrd Mat Mat Mat Fac Low Turns Passed 4229 | 67 203 1180 732 1529 518 Spaces Moved 1717 | 36 109 520 248 479 325 Core 74 | 1 . 1 . 72 . Treads 920 | 35 109 380 248 148 . Legs 139 | . . 139 . . . Wheels 581 | . . . . 256 325 Hover 3 | . . . . 3 . Flight . | . . . . . . Fastest Speed 50 | 50 160 120 160 125 125 Average Speed 194 | 156 160 154 228 270 138 Slowest Speed 800 | 160 160 300 245 800 140 Overloaded Moves . | . . . . . . Propulsion Burnouts . | . . . . . . Robots Hopped . | . . . . . . Cave-ins Triggered . | . . . . . . Exploration Rate (%) 26 | 4 25 50 23 9 45 Regions Visited 5 Branch Regions 1 Pre-discovered Areas . | . . . . . . Known Exits Taken . | . . . . . . Unknown Exits Taken 5 | 1 1 1 1 1 . Scrap Searched 2 | . . . . . 2 Spaces Dug 1 | . . 1 . . . Terrain Destroyed 26 | . . 1 3 16 6 Melee . | . . . . . . Projectile 26 | . . 1 3 16 6 AOE . | . . . . . . Terrain Rammed . | . . . . . . Walls Destroyed . | . . . . . . Machines Disabled . | . . . . . . Actions | -11 -10 -9 -8 -7 -7 --------- Run | Yrd Mat Mat Mat Fac Low Total 2209 | 45 118 762 334 593 357 Wait 156 | . . 111 29 12 4 Move 1712 | 35 108 519 247 478 325 Hop . | . . . . . . Pick Up 48 | 4 . 23 5 15 1 Fast Attach 25 | 4 . 6 5 9 1 Attach 24 | 2 . 8 3 8 3 Detach 2 | . . . 1 . 1 Swap 21 | . . 11 1 7 2 Drop 22 | . . 13 . 8 1 Fire 195 | . 10 68 43 55 19 Melee . | . . . . . . Ram 1 | . . . . 1 . Kick . | . . . . . . Crush 3 | . . 3 . . . Escape Stasis . | . . . . . . Rewire . | . . . . . . Trap . | . . . . . . Miscellaneous . | . . . . . . Route ------- -11/Scrapyard -10/Materials -9/Materials -8/Materials (discovered 3 exits: *Fac / [*Sto x2]) -7/Factory -7/Lower Caves History --------- Turn | Location | Event 24 | -11/Scrapyard | Discovered new exit (range 16) 68 | -11/Scrapyard | Entered Materials 196 | -10/Materials | Discovered new exit (range 16) 271 | -10/Materials | Entered another Materials area 271 | -9/Materials | Evolved 2 slots: Utility x2 312 | -9/Materials | Build established: Mutant 1011 | -9/Materials | Lost 6 parts (1p2n2u1w) 1284 | -9/Materials | Build established: Scavenger-Mutant 1430 | -9/Materials | Discovered new exit (range 13) 1451 | -9/Materials | Entered another Materials area 1451 | -8/Materials | Evolved 2 slots: Utility x2 1660 | -8/Materials | Discovered new exit (range 4) 1820 | -8/Materials | Discovered new exit (range 15) 2007 | -8/Materials | Met 7R-MNS 2142 | -8/Materials | Lost 4 parts (3u1w) 2144 | -8/Materials | Discovered new exit (range 15) 2183 | -8/Materials | Entered Factory 2183 | -7/Factory | Evolved 2 slots: Power x1, Utility x1 2184 | -7/Factory | Caught up to 7R-MNS 2592 | -7/Factory | Garrison activated, responded to threat 2647 | -7/Factory | Discovered new exit (range 16) 2714 | -7/Factory | Lost 7 parts (1p1n3u2w) 3276 | -7/Factory | Core integrity fell below 50% 3390 | -7/Factory | Build established: Scavenger-Skirmisher 3712 | -7/Factory | Entered Lower Caves 3777 | -7/Lower Caves | Learned Factory emergency access door positions 4187 | -7/Lower Caves | Attracted the attention of an 0b10 base 4215 | -7/Lower Caves | Core integrity fell below 20% 4230 | -7/Lower Caves | Destroyed by G-47 Trooper with Particle Gun Last Messages --------------- 04208_ Wheel destroyed. 04210_ Autogun fries itself beyond repair. 04210_ VTOL Module fries itself beyond repair. 04210_ Aluminum Leg fries itself beyond repair. 04213_ Critical hit (Burn: +37). 04214_ Slug penetrates Wall. 04214_ Gravmag System destroyed. 04217_ Lgt. Nuclear Core destroyed. 04218_ Critical hit (Burn: +37). 04219_ Hvy. Deuterium Engine destroyed. 04219_ Slug penetrates Wall. 04221_ Imp. Heat Sink destroyed. 04222_ System corrupted: Matter fused (-5). 04222_ Slug penetrates Wall. 04224_ Assault Cannon destroyed. 04225_ Targeting Computer destroyed. 04225_ Y-64 Sentinel KE Penetrator blasted off. 04226_ Critical hit (Burn: +37). 04227_ G-47 Trooper knocked back. 04229_ Y-64 Sentinel destroyed. Map ----- +----------------------------------------------------+ | ##### ####??????????????????????????????????? | | % ##### #####??? ?????????????????????????????? | | ##??????????????????????????????????? | | ## # #?#????????????????????????????????? | | ## ###### # ##????????????????????????????????? | | ##%####### ##?#??????????????????????????????? | | ## ####### # #### ??? ??????????????????????????? | | ## ######## ##### ????????????????????????????? | | ##########? ?????????????????????????????? | | #### ## #### ?????????????????????????????? | | #### ## ## ??#?????????????????????? | | ##?# ??#???#?????????????????? | | #?### ? ?? ????????????? | | #### ?? ?? ?????????????? | | ??## # ####+#####? ???????????? | | #### % ####### # # " "# ?????????????? | | ??# % ######?## # # " "# ?? ??????????? | | ?## ######?### #""" "#??? ??????????? | | ## % % ###?##??## # #??? ?????????? | | # % ######### # #? ? ? ????????? | | % #####?### + ""# ? ? ?????????? | | ## ##%% ## ######## # T"#??? ??? ?#????? | | ?#### ##### #####; # ""# ? ????????? | | ########?## #### gg#""""" "?# #??????? | | ########## ;;#;##/#### ###?????? | | #?#?#### %@ [g% #?#??????? | | ##### ### % %%%%% ####?????? | | ?## ###?## ####### #???????? | | ## #####?# ####?#?? #??????? | | ##?#?#### #?#?###? #?????? | | ######?###?### ######### #?????? | | #?##??####?##?##########?### ## ##?????? | | ######?#?##??#?##?#?##?####?#####?##?#######?????? | | ?###???#????###?##?#??####??####?#?#?##??????????? | | ?##???#?#?#??###############?##?#????#???????????? | | ???#??#??#####?#?###???#######??##?##??#?????????? | | #?##??#??###?#?########?##???#?###?##????????????? | | ???#?#?##??#?#?#?##??###???#?###?#??##???????????? | | ???###?##???#???########?#???#?#???#?#???????????? | | ???????#???#??####???####?#?###?#????????????????? | | ????????#????##??##????###?###???##??????????????? | | ???#?????????#????????????#?????#????????????????? | | ?????????????##????????????#?????????????????????? | | ?????????????????????????????????????????????????? | | ?????????????????????????????????????????????????? | | ?????????????????????????????????????????????????? | | ?????????????????????????????????????????????????? | | ?????????????????????????????????????????????????? | | ?????????????????????????????????????????????????? | | ?????????????????????????????????????????????????? | +----------------------------------------------------+ Best States ------------- Heat Dissipation 62 Energy Generation 27 Energy Capacity 450 Matter Stores 332 Matter Capacity 450 Sight Range 16 Robot Scan Range 15 Terrain Scan Range 16 Terrain Scan Density 210 ECM Strength 1 Armor Coverage 300 Evasion (%) 55 Targeting Accuracy 5 Recoil Reduction 2 Offensive Hacking 10 Item Schematics ----------------- None Robot Schematics ------------------ None Fabricated ------------ Nothing Alien Tech Used ----------------- None Achievements -------------- None Challenges ------------ None Game ------ Seed CoolingArmageddonFlightbrick Manual? 0 Play Time 00:39:07 Cumulative 25.3 hours Start 2024.07.04 @ 00:22:10 End 2024.07.04 @ 01:05:31 Sessions 1 Manual Loads 0 Difficulty Rogue Special Mode None Game No. 23 Rogue 23 Adventurer 0 Explorer 0 Win Type - Total 0 Types 0/0/0/0/0/0/0/0/0 Lore% 9 Gallery% 31 Achievement% 21 Wizard Run 0 Options --------- Layout 1 ASCII 0 Keyboard 1 Movement Numpad Keybinds 1 Fullscreen 1 Font 24/Smallcaps Map View 50x35 Zoom Use 0% Tactical HUD 1 Map Filters NONE Filters NONE Steam 1 RUN: ffcb7d5a-9894-46e0-b30e-c012316cdea9